lending/lending_fUSD_20240112
["ID","MTS","AMOUNT","RATE_DAILY","PERIOD"]
[311416971,1705080639312,-309.58159212,0.00022596,2]
[311416972,1705080639323,-775.97859934,0.00022596,2]
[311416973,1705080639334,-199.70497621,0.00022596,2]
[311416974,1705080639344,-650.63857699,0.00022596,2]
[311416975,1705080639355,-330.41678734,0.00022596,2]
[311416976,1705080639365,-444.27223568,0.00022596,2]
[311416977,1705080639376,-161.78617435,0.00022596,2]
[311416978,1705080639386,-155.0,0.00022596,2]
[311416979,1705080639398,-214.8965107,0.00022596,2]
[311416980,1705080639408,-262.94748596,0.00022596,2]
[311416981,1705080639420,-196.15103659,0.00022596,2]
[311416982,1705080639431,-155.0,0.00022596,2]
[311416983,1705080639442,-189.57019599,0.00022596,2]
[311416984,1705080639453,-358.91504913,0.00022596,2]
[311416985,1705080639463,-473.57815491,0.00022596,2]
[311416986,1705080639474,-162.22176007,0.00022596,2]
[311416987,1705080639484,-1158.98043386,0.00022596,2]
[311416988,1705080639495,-276.45356326,0.00022596,2]
[311416989,1705080639505,-159.60119728,0.00022596,2]
[311416990,1705080639515,-384.33273248,0.00022596,2]
[311416991,1705080639526,-673.17891673,0.00022596,2]
[311416992,1705080639536,-198.33016733,0.00022596,2]
[311416993,1705080639548,-627.79851458,0.00022596,2]
[311416994,1705080639559,-157.92900519,0.00022596,2]
[311416995,1705080639570,-157.62498938,0.00022596,2]
[311416996,1705080639581,-224.17120298,0.00022596,2]
[311416997,1705080639592,-178.26442698,0.00022596,2]
[311416998,1705080639604,-267.65615118,0.00022596,2]
[311416999,1705080639615,-155.40173906,0.00022596,2]
[311417000,1705080639626,-1675.18994362,0.00022596,2]
[311417001,1705080639638,-4310.02565067,0.00022596,2]
[311417002,1705080639649,-249.84044134,0.00022596,2]
[311417003,1705080639658,-279.44531211,0.00022596,2]
[311417004,1705080639671,-884.09918832,0.00022596,2]
[311417005,1705080639681,-1656.07949933,0.00022596,2]
[311417006,1705080639690,-234.45084414,0.00022596,2]
[311417008,1705080640032,-264.58394231,0.00022596,2]
[311417009,1705080640052,-155.48324301,0.00022596,2]
[311417010,1705080640079,-156.67165431,0.00022596,2]
[311417011,1705080640092,-156.89250485,0.00022596,2]
[311417012,1705080640102,-407.1036959,0.00022596,2]
[311417013,1705080640111,-198.50361605,0.00022596,2]
[311417014,1705080640121,-165.63671366,0.00022596,2]
[311417015,1705080640130,-431.1574247,0.00022596,2]
[311417016,1705080640140,-2905.1265303,0.00022596,2]
[311417017,1705080640149,-335.6650495,0.00022596,2]
[311417018,1705080640159,-157.64396862,0.00022596,2]
[311417019,1705080640171,-359.5351465,0.00022596,2]
[311417020,1705080640181,-171.68625232,0.00022596,2]
[311417021,1705080640190,-3855.00674069,0.00022596,2]
[311417022,1705080640199,-155.54154941,0.00022596,2]
[311417023,1705080640209,-294.90353986,0.00022596,2]
[311417024,1705080640219,-155.95137878,0.00022596,2]
[311417025,1705080640228,-258.59152982,0.00022596,2]
[311417026,1705080640237,-264.28833294,0.00022596,2]
[311417027,1705080640247,-158.60896714,0.00022596,2]
[311417028,1705080640256,-241.80971217,0.00022596,2]
[311417029,1705080640266,-163.12818694,0.00022596,2]
[311417030,1705080640276,-3380.70731936,0.00022596,2]
[311417031,1705080640285,-521.85393487,0.00022596,2]
[311417032,1705080640295,-257.10827248,0.00022596,2]
[311417033,1705080640304,-469.70242892,0.00022596,2]
[311417034,1705080640314,-515.76938335,0.00022596,2]
[311417035,1705080640323,-74779.20111375,0.00022596,2]
[311417036,1705080640332,-155.0,0.00022597,2]
[311417037,1705080640342,-332.84934752,0.00022597,2]
[311417038,1705080640351,-825.65437686,0.00022597,2]
[311417039,1705080640361,-1030.04023329,0.00022597,2]
[311417040,1705080640370,-214.59382582,0.00022597,2]
[311417041,1705080640380,-155.40720409,0.00022597,2]
[311417042,1705080640391,-190.47470563,0.00022597,2]
[311417043,1705080640400,-155.00209641,0.00022597,2]
[311417044,1705080640410,-220.73840755,0.00022597,2]
[311417045,1705080640422,-2139.93820814,0.00022598,2]
[311417046,1705080640433,-155.24891292,0.00022598,2]
[311417047,1705080640443,-155.0,0.00022598,2]
[311417048,1705080640456,-155.0,0.00022598,2]
[311417049,1705080640466,-180.62,0.00022599,2]
[311417051,1705080640475,-8973.3595,0.000226,2]
[311417052,1705080640484,-669.92683499,0.000226,2]
[311417054,1705080640494,-1300.0,0.000226,8]
[311417055,1705080640504,-748.03,0.00022607,2]
[311417056,1705080640513,-290.28162874,0.0002261,2]
[311417057,1705080640524,-1442.042445,0.00022614,2]
[311417058,1705080640534,-1050.52164541,0.00022618,2]
[311417059,1705080640544,-150.46768086,0.0002263,2]
[311417061,1705080640553,-348.90438863,0.00022649,2]
[311417063,1705080640563,-180.62,0.00022659,2]
[311417064,1705080640572,-150.0,0.00022667,2]
[311417066,1705080640582,-151.54,0.00022669,2]
[311417067,1705080640591,-669.92683496,0.00022675,2]
[311417068,1705080640600,-1442.042445,0.00022685,2]
[311417069,1705080640609,-2552.72312784,0.00022698,2]
[311417070,1705080640618,-335.70955852,0.00022698,2]
[311417071,1705080640627,-200.8130963,0.00022698,2]
[311417072,1705080640636,-206.91186275,0.00022698,2]
[311417073,1705080640646,-12970.59011421,0.00022698,2]
[311417074,1705080640655,-243.40859199,0.00022698,2]
[311417075,1705080640664,-336.69086329,0.00022698,2]
[311417076,1705080640676,-155.0,0.00022698,2]
[311417077,1705080640685,-159.96179051,0.00022698,2]
[311417078,1705080640695,-155.52034948,0.00022698,2]
[311417079,1705080640704,-200.81745024,0.00022698,2]
[311417080,1705080640713,-213.42804886,0.00022698,2]
[311417081,1705080640722,-207.83148372,0.00022698,2]
[311417082,1705080640731,-155.1313233,0.00022698,2]
[311417083,1705080640740,-157.39865583,0.00022698,2]
[311417084,1705080640750,-474.06041571,0.00022698,2]
[311417085,1705080640759,-155.24845847,0.00022698,2]
[311417086,1705080640769,-1403.85083638,0.00022698,2]
[311417087,1705080640778,-206.40443824,0.00022698,2]
[311417088,1705080640787,-224.46329888,0.00022698,2]
[311417089,1705080640797,-155.11578688,0.00022698,2]
[311417090,1705080640806,-310.79630964,0.00022698,2]
[311417091,1705080640815,-437.26536885,0.00022698,2]
[311417092,1705080640825,-162.27621404,0.00022698,2]
[311417093,1705080640834,-1043.75705172,0.00022698,2]
[311417094,1705080640843,-580.60398803,0.00022698,2]
[311417095,1705080640852,-155.52053453,0.00022698,2]
[311417096,1705080640861,-2618.27410809,0.00022698,2]
[311417097,1705080640871,-155.40720063,0.00022698,2]
[311417098,1705080640880,-155.99624117,0.00022698,2]
[311417099,1705080640890,-486.78125949,0.00022698,2]
[311417100,1705080640899,-39228.15772866,0.00022699,2]
[311417101,1705080640908,-23906.6989,0.000227,2]
[311417102,1705080640920,-245000.0,0.000227,2]
[311417103,1705080640930,-200.0,0.000227,8]
[311417104,1705080640939,-180.62,0.00022718,2]
[311417105,1705080640948,-748.03,0.00022724,2]
[311417106,1705080640957,-669.92683496,0.0002275,2]
[311417107,1705080640966,-1442.042445,0.00022757,2]
[311417108,1705080640976,-156.67,0.00022769,2]
[311417109,1705080640985,-150.0,0.0002277,2]
[311417110,1705080640994,-152.3068,0.0002277,2]
[311417111,1705080641003,-348.90438863,0.00022774,2]
[311417112,1705080641012,-180.62,0.00022778,2]
[311417113,1705080641020,-150.0,0.00022783,2]
[311417114,1705080641029,-151.54,0.00022783,2]
[311417115,1705080641038,-150.0,0.00022791,2]
[311417116,1705080641047,-296.01270966,0.000228,2]
[311417117,1705080641057,-1911.75789619,0.000228,2]
[311417118,1705080641066,-187.58657963,0.000228,2]
[311417119,1705080641075,-16923.97218115,0.000228,2]
[311417120,1705080641084,-3977.16743994,0.000228,2]
[311417121,1705080641093,-1327.92582524,0.000228,2]
[311417122,1705080641103,-4219.4042273,0.000228,2]
[311417123,1705080641112,-200.0,0.000228,8]
[311417124,1705080641121,-150.0,0.00022807,2]
[311417125,1705080641130,-5800.0,0.00022815,2]
[311417126,1705080641140,-5800.0,0.00022824,2]
[311417127,1705080641149,-669.92683496,0.00022825,2]
[311417128,1705080641158,-1442.042445,0.00022828,2]
[311417129,1705080641171,-150.0,0.00022831,2]
[311417130,1705080641181,-5800.0,0.00022832,2]
[311417131,1705080641190,-180.62,0.00022837,2]
[311417132,1705080641199,-5800.0,0.00022841,2]
[311417133,1705080641209,-748.03,0.00022841,2]
[311417134,1705080641219,-5800.0,0.00022849,2]
[311417135,1705080641229,-296.01270965,0.0002285,2]
[311417136,1705080641239,-1911.75789617,0.0002285,2]
[311417137,1705080641248,-16923.97218114,0.0002285,2]
[311417138,1705080641258,-3977.16743993,0.0002285,2]
[311417139,1705080641267,-1327.92582523,0.0002285,2]
[311417140,1705080641276,-5800.0,0.00022858,2]
[311417141,1705080641286,-5800.0,0.00022866,2]
[311417142,1705080641295,-500.0,0.00022871,2]
[311417143,1705080641304,-5800.0,0.00022875,2]
[311417144,1705080641314,-5800.0,0.00022883,2]
[311417145,1705080641323,-338.63360765,0.0002289,2]
[311417146,1705080641332,-5800.0,0.00022892,2]
[311417147,1705080641341,-711.37,0.00022897,2]
[311417148,1705080641350,-151.54,0.00022898,2]
[311417149,1705080641360,-5000.0,0.00022898,2]
[311417150,1705080641369,-1000.0,0.00022899,2]
[311417151,1705080641378,-348.90438863,0.00022899,2]
[311417152,1705080641387,-250.0,0.000229,2]
[311417153,1705080641397,-78811.24146043,0.000229,2]
[311417154,1705080641406,-5800.0,0.000229,2]
[311417155,1705080641416,-182360.94,0.000229,2]
[311417156,1705080641430,-669.92683496,0.000229,2]
[311417157,1705080641439,-1442.042445,0.000229,2]
[311417158,1705080641450,-296.01270965,0.000229,2]
[311417159,1705080641460,-1911.75789617,0.000229,2]
[311417160,1705080641468,-187.58657963,0.000229,2]
[311417161,1705080641478,-16923.97218114,0.000229,2]
[311417162,1705080641487,-3977.16743993,0.000229,2]
[311417163,1705080641496,-1327.92582523,0.000229,2]
[311417164,1705080641505,-200.0,0.000229,8]
[311417165,1705080641514,-748.03,0.00022958,2]
[311417166,1705080641524,-1802.0,0.00022986,2]
[311417167,1705080641533,-338.63360765,0.00022989,2]
[311417168,1705080641542,-158.4761644,0.00022997,2]
[311417169,1705080641551,-1919.61292564,0.00022997,2]
[311417170,1705080641560,-5210.25785161,0.00022997,2]
[311417171,1705080641569,-155.23964051,0.00022997,2]
[311417172,1705080641579,-150.0,0.00022997,2]
[311417173,1705080641589,-604.7260143,0.00022998,2]
[311417174,1705080641598,-5800.88551344,0.00022998,2]
[311417175,1705080641607,-227.94064555,0.00022998,2]
[311417176,1705080641616,-1000.0,0.00022998,2]
[311417177,1705080641625,-1000.0,0.00022998,2]
[311417178,1705080641634,-1000.0,0.00022998,2]
[311417179,1705080641642,-1000.0,0.00022998,2]
[311417180,1705080641651,-1000.0,0.00022998,2]
[311417181,1705080641660,-1000.0,0.00022998,2]
[311417182,1705080641672,-1000.0,0.00022998,2]
[311417183,1705080641681,-1000.0,0.00022998,2]
[311417184,1705080641690,-1000.0,0.00022998,2]
[311417185,1705080641699,-1000.0,0.00022998,2]
[311417186,1705080641708,-1000.0,0.00022998,2]
[311417187,1705080641716,-1000.0,0.00022998,2]
[311417188,1705080641725,-1000.0,0.00022998,2]
[311417189,1705080641734,-1000.0,0.00022998,2]
[311417190,1705080641742,-1000.0,0.00022998,2]
[311417191,1705080641751,-1000.0,0.00022998,2]
[311417192,1705080641760,-825.8404659,0.00022998,2]
[311417193,1705080641769,-1440047.45277963,0.00022999,2]
[311417194,1705080641778,-318.31330327,0.00022999,2]
[311417195,1705080641787,-504950.84064027,0.00022999,2]
[311417196,1705080641796,-150.0,0.00022999,2]
[311417197,1705080641805,-150.0,0.00022999,2]
[311417198,1705080641814,-150.0,0.00022999,2]
[311417199,1705080641823,-150.0,0.00022999,2]
[311417200,1705080641833,-150.0,0.00022999,2]
[311417201,1705080641846,-150.0,0.00022999,2]
[311417202,1705080641857,-150.0,0.00022999,2]
[311417203,1705080641866,-150.0,0.00022999,2]
[311417204,1705080641875,-8660364.32435908,0.00023,2]
[311417205,1705080642258,-431803.35108415,0.00023,2]
[311417206,1705080642269,-163971.31992642,0.00023,2]
[311417207,1705080642281,-1108.77575039,0.00023,2]
[311417208,1705080642293,-10000.0,0.00023,2]
[311417209,1705080642305,-3368.08959021,0.00023,2]
[311417210,1705080642315,-21697.44306821,0.00023,2]
[311417211,1705080642330,-6250.00202775,0.00023,2]
[311417212,1705080642341,-1546.03168045,0.00023,2]
[311417213,1705080642352,-20837.96108,0.00023,2]
[311417214,1705080642364,-260.08861879,0.00023,2]
[311417215,1705080642375,-527.78199981,0.00023,2]
[311417216,1705080642402,-2776.99734937,0.00023,2]
[311417217,1705080642421,-1174.23863127,0.00023,2]
[311417218,1705080642433,-2420.38355918,0.00023,2]
[311417219,1705080642448,-1045.97134691,0.00023,2]
[311417220,1705080642475,-119303.03779285,0.00023,2]
[311417221,1705080642495,-1512.623474,0.00023,2]
[311417222,1705080642505,-284.1185386,0.00023,2]
[311417223,1705080642542,-706.00530025,0.00023,2]
[311417224,1705080642553,-8225.93546063,0.00023,2]
[311417225,1705080642564,-6879.59817359,0.00023,2]
[311417226,1705080642575,-543.57360465,0.00023,2]
[311417227,1705080642586,-734.21627418,0.00023,2]
[311417228,1705080642597,-363.79112314,0.00023,2]
[311417229,1705080642608,-1106.67564502,0.00023,2]
[311417230,1705080642620,-2111.3636089,0.00023,2]
[311417231,1705080642631,-1675.24385626,0.00023,2]
[311417232,1705080642649,-152724.61659256,0.00023,2]
[311417233,1705080642660,-74424.07982273,0.00023,2]
[311417234,1705080642673,-121501.32290811,0.00023,2]
[311417235,1705080642685,-85973.46541456,0.00023,2]
[311417236,1705080642696,-298.62800448,0.00023,2]
[311417237,1705080642737,-877821.50688011,0.00023,2]
[311417270,1705080643434,-1020.42486702,0.0002285,2]
[311417271,1705080643446,-575.575,0.0002285,2]
[311417272,1705080643469,-2560.00000001,0.0002285,2]
[311417277,1705080644103,-63.40436025,0.0002285,2]
[311417278,1705080644113,-170.71981097,0.00022899,6]
[311417279,1705080644122,-638.01778443,0.00023,2]
[311417280,1705080644135,-845.931648,0.00023,2]
[311417281,1705080644231,-388.19382264,0.00023,2]
[311417282,1705080644272,-5144.69999998,0.00023,2]
[311417283,1705080644292,-3419.22458349,0.00023,2]
[311417284,1705080644303,-5432.18779795,0.00023,2]
[311417285,1705080644316,-22097.96827009,0.00023,2]
[311417286,1705080644336,-1469.17500647,0.00023,2]
[311417287,1705080644355,-2132.60514067,0.00023,2]
[311417288,1705080644367,-4196.52846919,0.00023,2]
[311417289,1705080644378,-69342.00767444,0.00023,2]
[311417292,1705080644538,-101983.37674608,0.00023,2]
[311417293,1705080644548,-40000.0,0.00023,2]
[311417294,1705080644557,-1730747.42716236,0.00023,2]
[311417295,1705080644566,-493.17943564,0.00023,2]
[311417296,1705080644575,-150.0,0.00023,2]
[311417297,1705080644585,-2743.02460576,0.00023,2]
[311417298,1705080644594,-151.54,0.00023012,2]
[311417299,1705080644603,-156.67,0.00023027,2]
[311417300,1705080644612,-406.6,0.0002306,2]
[311417301,1705080644622,-748.03,0.00023076,2]
[311417302,1705080644631,-170.13,0.0002311,2]
[311417303,1705080644641,-300.0,0.00023123,2]
[311417304,1705080644650,-151.54,0.00023127,2]
[311417305,1705080644659,-406.6,0.00023176,2]
[311417306,1705080644668,-748.03,0.00023193,2]
[311417307,1705080644678,-1050.52164541,0.00023218,2]
[311417308,1705080644687,-151.54,0.00023241,2]
[311417309,1705080644696,-156.67,0.00023286,2]
[311417310,1705080644706,-208.79490674,0.00023288,4]
[311417311,1705080644716,-168.2748619,0.00023288,4]
[311417312,1705080644725,-500.0,0.00023288,4]
[311417313,1705080644735,-157.46074417,0.00023288,4]
[311417314,1705080644745,-287.82873987,0.00023288,2]
[311417315,1705080644755,-505.93180483,0.00023288,2]
[311417316,1705080644764,-500.0,0.00023288,2]
[311417317,1705080644774,-1128.55508658,0.00023288,2]
[311417318,1705080644783,-1128.55508658,0.00023288,2]
[311417319,1705080644792,-310.52885756,0.00023288,2]
[311417320,1705080644802,-1128.55508658,0.00023288,2]
[311417321,1705080644811,-1128.55508658,0.00023288,2]
[311417322,1705080644820,-1128.55508658,0.00023288,2]
[311417323,1705080644830,-1128.55508658,0.00023288,2]
[311417324,1705080644839,-1128.55508658,0.00023288,2]
[311417325,1705080644851,-1128.55508658,0.00023288,2]
[311417326,1705080644874,-450.48216947,0.00023288,2]
[311417327,1705080644897,-1128.55508658,0.00023288,2]
[311417328,1705080644921,-1128.55508658,0.00023288,2]
[311417329,1705080644944,-1128.55508658,0.00023288,2]
[311417330,1705080644967,-1128.55508658,0.00023288,2]
[311417331,1705080644988,-1128.55508658,0.00023288,2]
[311417332,1705080645010,-1128.55508658,0.00023288,2]
[311417333,1705080645032,-1128.55508658,0.00023288,2]
[311417334,1705080645042,-1128.55508658,0.00023288,2]
[311417335,1705080645051,-1128.55508658,0.00023288,2]
[311417336,1705080645061,-1128.55508658,0.00023288,2]
[311417337,1705080645070,-1128.55508658,0.00023288,2]
[311417338,1705080645080,-1128.55508658,0.00023288,2]
[311417339,1705080645089,-1128.55508658,0.00023288,2]
[311417340,1705080645099,-1128.55508658,0.00023288,2]
[311417341,1705080645108,-1128.55508658,0.00023288,2]
[311417342,1705080645118,-1128.55508658,0.00023288,2]
[311417343,1705080645127,-1128.55508658,0.00023288,2]
[311417344,1705080645136,-1128.55508658,0.00023288,2]
[311417345,1705080645145,-1128.55508658,0.00023288,2]
[311417346,1705080645155,-1128.55508658,0.00023288,2]
[311417347,1705080645164,-1128.55508658,0.00023288,2]
[311417348,1705080645176,-1128.55508658,0.00023288,2]
[311417349,1705080645185,-1128.55508658,0.00023288,2]
[311417350,1705080645194,-1128.55508658,0.00023288,2]
[311417351,1705080645204,-1128.55508658,0.00023288,2]
[311417352,1705080645213,-1128.55508658,0.00023288,2]
[311417353,1705080645234,-1128.55508658,0.00023288,2]
[311417354,1705080645246,-1128.55508658,0.00023288,2]
[311417355,1705080645256,-1128.55508658,0.00023288,2]
[311417356,1705080645265,-1128.55508658,0.00023288,2]
[311417357,1705080645275,-1128.55508658,0.00023288,2]
[311417358,1705080645285,-1128.55508698,0.00023288,2]
[311417359,1705080645295,-386.42573115,0.00023288,2]
[311417360,1705080645305,-180.94315466,0.00023288,2]
[311417361,1705080645315,-196.15035906,0.00023288,2]
[311417362,1705080645325,-406.6,0.00023292,2]
[311417363,1705080645335,-520.43840264,0.000233,2]
[311417364,1705080645345,-748.03,0.0002331,2]
[311417365,1705080645355,-155.22,0.00023347,2]
[311417366,1705080645365,-154.23,0.00023348,2]
[311417367,1705080645375,-151.54,0.00023356,2]
[311417368,1705080645385,-406.6,0.00023408,2]
[311417369,1705080645394,-748.03,0.00023427,2]
[311417370,1705080645404,-151.54,0.0002347,2]
[311417371,1705080645414,-840.23,0.00023516,2]
[311417372,1705080645426,-406.6,0.00023524,2]
[311417373,1705080645441,-748.03,0.00023544,2]
[311417374,1705080645451,-156.67,0.00023544,2]
[311417375,1705080645460,-151.54,0.00023585,2]
[311417376,1705080645470,-406.6,0.0002364,2]
[311417377,1705080645480,-748.03,0.00023661,2]
[311417378,1705080645489,-168.39287458,0.00023699,2]
[311417379,1705080645598,-500.0,0.00023699,2]
[311417380,1705080645608,-151.54,0.00023699,2]
[311417381,1705080645617,-406.6,0.00023755,2]
[311417382,1705080645627,-748.03,0.00023778,2]
[311417383,1705080645637,-156.67,0.00023803,2]
[311417384,1705080645646,-155.22,0.00023806,2]
[311417385,1705080645655,-151.54,0.00023814,2]
[311417386,1705080645664,-406.6,0.00023871,2]
[311417387,1705080645676,-748.03,0.00023895,2]
[311417388,1705080645685,-151.54,0.00023928,2]
[311417389,1705080645694,-406.6,0.00023987,2]
[311417390,1705080645704,-1131.61097047,0.0002399,2]
[311417391,1705080645713,-500.0,0.00023998,2]
[311417392,1705080645722,-200.61255035,0.00024,2]
[311417393,1705080645731,-430.99724455,0.00024,2]
[311417394,1705080645740,-748.03,0.00024012,2]
[311417395,1705080645749,-156.67,0.00024061,2]
[311417396,1705080645758,-406.6,0.00024103,2]
[311417397,1705080645768,-748.03,0.0002413,2]
[311417398,1705080645777,-519.31,0.00024151,2]
[311417399,1705080645786,-406.6,0.00024219,2]
[311417400,1705080645795,-748.03,0.00024247,2]
[311417401,1705080645804,-155.22,0.00024265,2]
[311417403,1705080645813,-167.6,0.00024297,2]
[311417405,1705080645822,-156.67,0.0002432,2]
[311417407,1705080645831,-748.03,0.00024364,2]
[311417409,1705080645840,-737.6,0.00024472,2]
[311417411,1705080645849,-748.03,0.00024481,2]
[311417413,1705080645859,-300.0,0.00024493,2]
[311417415,1705080645869,-840.23,0.00024494,2]
[311417417,1705080645878,-328.0,0.00024526,2]
[311417419,1705080645888,-156.67,0.00024579,2]
[311417420,1705080645897,-250.0,0.00024658,2]
[311417422,1705080645907,-155.22,0.00024724,2]
[311417423,1705080645916,-154.23,0.00024726,2]
[311417424,1705080645929,-156.67,0.00024837,2]
[311417426,1705080645939,-173724.11822385,0.00024988,2]
[311417428,1705080645948,-1015.96602564,0.00025,2]
[311417430,1705080645958,-201.78427875,0.00025,2]
[311417431,1705080645968,-167.16432493,0.00025,2]
[311417432,1705080645977,-303.07385153,0.00025,2]
[311417433,1705080645986,-1250.0,0.00025,3]
[311417434,1705080645996,-1582.37478172,0.00025,2]
[311417435,1705080646007,-1247.21446984,0.00025,2]
[311417436,1705080646016,-156.67,0.00025096,2]
[311417438,1705080646025,-155.22,0.00025183,2]
[311417440,1705080646035,-156.67,0.00025354,2]
[311417442,1705080646044,-840.23,0.00025473,2]
[311417444,1705080646054,-156.67,0.00025613,2]
[311417446,1705080646063,-155.22,0.00025643,2]
[311417448,1705080646072,-156.67,0.00025871,2]
[311417450,1705080646082,-150.0,0.00026079,2]
[311417452,1705080646091,-155.22,0.00026102,2]
[311417453,1705080646101,-154.23,0.00026104,2]
[311417454,1705080646110,-156.67,0.0002613,2]
[311417455,1705080646119,-519.31,0.00026415,2]
[311417456,1705080646128,-840.23,0.00026451,2]
[311417457,1705080646138,-7386.52,0.00026575,2]
[311417458,1705080646148,-12283.43506918,0.00027,2]
[311417460,1705080646157,-155.0,0.00027,2]
[311417462,1705080646167,-1300.0,0.00027,3]
[311417464,1705080646178,-1559.27,0.00027123,2]
[311417466,1705080646187,-341.53,0.00027154,2]
[311417468,1705080646196,-737.6,0.00027191,2]
[311417470,1705080646206,-328.0,0.00027251,2]
[311417472,1705080646215,-155.0,0.00027397,2]
[311417474,1705080646225,-151.03074467,0.00027397,2]
[311417476,1705080646234,-3000.0,0.00027397,2]
[311417478,1705080646243,-3000.0,0.00027397,2]
[311417480,1705080646253,-4878.6747,0.00027397,2]
[311417481,1705080646262,-250.0,0.00027397,2]
[311417482,1705080646272,-163.94,0.00027397,2]
[311417484,1705080646281,-821.65,0.00027397,4]
[311417486,1705080646290,-5687.92805834,0.000274,2]
[311417488,1705080646299,-250.0,0.000274,2]
[311417490,1705080646308,-406.03,0.000274,2]
[311417491,1705080646317,-406.03,0.000274,2]
[311417493,1705080646327,-406.03,0.000274,2]
[311417495,1705080646336,-406.03,0.000274,2]
[311417497,1705080646345,-406.03,0.000274,2]
[311417499,1705080646355,-406.03,0.000274,2]
[311417501,1705080646364,-406.03,0.000274,2]
[311417503,1705080646374,-406.03,0.000274,2]
[311417505,1705080646383,-406.03,0.000274,2]
[311417507,1705080646393,-406.03,0.000274,2]
[311417509,1705080646403,-840.23,0.0002743,2]
[311417511,1705080646412,-787.76004236,0.00028,2]
[311417513,1705080646423,-244.43898241,0.00028,2]
[311417515,1705080646437,-341.53,0.00028045,2]
[311417517,1705080646446,-36518.318,0.00028189,2]
[311417519,1705080646455,-835.0,0.00028189,2]
[311417521,1705080646465,-1028.0,0.00028189,2]
[311417523,1705080646476,-1252.0,0.00028273,2]
[311417525,1705080646485,-724.018,0.00028273,2]
[311417527,1705080646494,-1323.172,0.00028273,2]
[311417529,1705080646504,-167.6,0.00028307,2]
[311417531,1705080646513,-840.23,0.00028408,2]
[311417533,1705080646523,-519.31,0.00028679,2]
[311417535,1705080646532,-155.0,0.00028767,2]
[311417537,1705080646541,-341.53,0.00028937,2]
[311417539,1705080646550,-1350.0,0.00029,3]
[311417541,1705080646559,-235.0,0.00029033,2]
[311417543,1705080646568,-507.0,0.00029033,2]
[311417545,1705080646577,-373.279,0.00029033,2]
[311417547,1705080646586,-879.0,0.00029033,2]
[311417549,1705080646596,-4956.291,0.00029033,2]
[311417551,1705080646605,-403.0,0.00029033,2]
[311417553,1705080646614,-19678.0,0.00029033,2]
[311417554,1705080646623,-924.31,0.00029033,2]
[311417555,1705080646632,-1220.031,0.00029033,2]
[311417556,1705080646641,-2270.0,0.00029033,2]
[311417557,1705080646652,-844.311,0.00029033,2]
[311417558,1705080646661,-4168.0,0.00029033,2]
[311417559,1705080646676,-2901.0,0.00029033,2]
[311417560,1705080646687,-1822.051,0.00029033,2]
[311417561,1705080646696,-945.0,0.00029033,2]
[311417562,1705080646706,-1851.0,0.00029033,2]
[311417563,1705080646715,-840.23,0.00029387,2]
[311417564,1705080646725,-188.31609233,0.000295,3]
[311417565,1705080646734,-19105.65798421,0.000295,2]
[311417566,1705080646744,-195.63942812,0.000298,2]
[311417567,1705080646754,-1513.0,0.000299,5]
[311417568,1705080646763,-737.6,0.0002991,2]
[311417569,1705080646773,-328.0,0.00029976,2]
[311417570,1705080646783,-31507.26017,0.00029999,2]
[311417571,1705080646792,-100000.0,0.0003,2]
[311417572,1705080646802,-6851.60015863,0.0003,4]
[311417573,1705080646811,-919.96327243,0.0003,4]
[311417574,1705080646820,-528.30237342,0.0003,4]
[311417575,1705080646830,-298.85346382,0.0003,30]
[311417576,1705080646839,-155.0,0.0003,2]
[311417577,1705080646849,-948.61008161,0.0003,4]
[311417578,1705080646859,-2195.48638102,0.0003,5]
[311417579,1705080646868,-705.68739337,0.0003,2]
[311417580,1705080646877,-9625.15929167,0.0003,2]
[311417581,1705080646886,-581.18679215,0.0003,2]